Cogmind - Beta 15 @@@ ROGUE MODE // 2025.08.13 @ 07:25:46 Player: Dadrick Result: Destroyed by H-88 Terminator with Heavy Machine Gun Performance ------------- Evolutions (9) 4500 Regions Visited (28) 5600 Robots Destroyed (201) 1005 Value Destroyed (7288) 7288 Prototype IDs (83) 1660 Alien Tech Used (0) 0 Bonus (11458) 11458 TOTAL SCORE: 31511 Bonus ------- Follower Combat Kills 1661 Awakened Behemoth Slayer 1000 Network Hubs Disabled 600 Aligned with FarCom 300 Met Data Miner 300 Met Imprinter 300 Met Warlord at Base 500 MAIN.C Attacked Warlord 500 Warlord Defense Kills 2160 Built Enhanced Grunts 300 Met R17 at Cetus 500 Met R17 at Research 2000 Met Warlord at Research 2000 Invited to Help at Command 2000 Friendly Fire -2663 Cogmind --------- Core Integrity 0/1600 Matter 300/300 Energy 99/100 System Corruption 51% Temperature Cool (0) Movement Core (50) Location -1/Access Parts ------- > --- POWER (3) -------- (None) > --- PROPULSION (7) --- (None) > --- UTILITY (12) ----- (None) > --- WEAPON (3) ------- CR-A16's Behemoth Slayer > --- INVENTORY (5) ---- Improved Heavy Treads Quantum Capacitor Peak State ------------ > --- POWER ------------ Reinforced Fission Core Light Particle Reactor Quantum Reactor > --- PROPULSION ------- Combat Antigrav System Combat Antigrav System Combat Antigrav System Combat Antigrav System Combat Antigrav System Combat Linear Gravjet Combat Linear Gravjet > --- UTILITY ---------- Advanced Cooling System Huge Storage Unit Enhanced Optical Array Advanced Signal Interpreter Advanced Melee Analysis Suite Experimental Core Analyzer Advanced Transmission Jammer Experimental Cloaking Device Centrium Light Armor Plating Advanced Force Field Improved Hacking Suite Improved Hacking Suite > --- WEAPON ----------- Plasma Lance Plasma Lance Enhanced Force Lance > --- INVENTORY -------- Light Antimatter Reactor Light Particle Reactor Antigrav Array Combat Linear Gravjet Compact Battery Quantum Capacitor Improved Phase Shifter Improved Medium Armor Plating Layered Light Armor Plating Centrium Light Armor Plating Graphene Brace Improved Shock Absorption System Advanced Shield Generator Advanced Remote Force Field Mapping Drone Bay Enhanced Nova Cannon Light Antimatter Cannon Micro-nuke Launcher Improved Plasma Cutter Vortex Lance CR-A16's Behemoth Slayer [Rating: 197] Favorites ----------- Power Micro Fission Core Engine Light Ion Engine Power Core Micro Fission Core Reactor Light Quantum Reactor Propulsion Improved VTOL Module Treads Light Treads Leg Experimental Flexi-carbon Leg Hover Unit Combat Antigrav System Flight Unit Improved VTOL Module Utility Improved Hacking Suite Device Structural Scanner Storage Medium Storage Unit Processor Enhanced Optical Array Hackware Improved Hacking Suite Protection Makeshift Light Armor Plating Weapon CR-A16's Pointy Stick Energy Gun Small Laser Energy Cannon Nova Cannon Ballistic Gun High-powered Shotgun Ballistic Cannon Gauss Cannon Launcher Long-range Missile Launcher Special Weapon RU-N14's Throwing Claymores v3 Impact Weapon Power Maul Slashing Weapon Phasing Sabre Piercing Weapon CR-A16's Pointy Stick Special Melee Weapon Advanced Datajack Build | -11 -10 -10 -10 -9 -8 -7 -7 -7 -7 -6 -6 -6 -6 -6 -5 -5 -5 -5 -5 -5 -4 -4 -4 -4 -3 -3 -2 -1 ------- Run | Yrd Mat Min Exi Min Mat Fac Low Low Zio Pro Fac Low Low Dat Pro Fac Ext Cet Arc Hub Fac Upp Upp War Pro Res Res Acc Slots Evolved 18 | . . . . . 4 2 . . . . 2 . . . . 2 . . . . 2 . . . . 2 2 2 Power 2 | . . . . . . . . . . . . . . . . 1 . . . . . . . . . . 1 . Propulsion 5 | . . . . . 1 2 . . . . 1 . . . . . . . . . . . . . . 1 . . Utility 10 | . . . . . 2 . . . . . 1 . . . . 1 . . . . 2 . . . . 1 1 2 Weapon 1 | . . . . . 1 . . . . . . . . . . . . . . . . . . . . . . . Parts Attached 230 | 7 8 . . 1 23 21 1 . 3 . 7 1 . . . 11 6 4 2 . 9 7 2 19 5 23 18 52 Power 30 | 1 . . . . 2 3 . . . . . . . . . 3 . . . . . 1 2 2 1 1 2 12 Engine 5 | 1 . . . . 1 1 . . . . . . . . . 1 . . . . . 1 . . . . . . Core 8 | . . . . . 1 2 . . . . . . . . . 2 . . . . . . 2 . 1 . . . Reactor 17 | . . . . . . . . . . . . . . . . . . . . . . . . 2 . 1 2 12 Propulsion 62 | 2 . . . . 6 8 . . . . 3 . . . . 4 1 . . . 3 1 . 3 2 10 3 16 Treads 14 | 2 . . . . 6 . . . . . . . . . . . . . . . . . . . 1 2 . 3 Leg 1 | . . . . . . . . . . . . . . . . . . . . . . . . . . . . 1 Wheel . | . . . . . . . . . . . . . . . . . . . . . . . . . . . . . Hover 31 | . . . . . . . . . . . 1 . . . . . . . . . 3 1 . 2 1 8 3 12 Flight 16 | . . . . . . 8 . . . . 2 . . . . 4 1 . . . . . . 1 . . . . Utility 92 | 2 5 . . . 8 6 1 . . . 4 1 . . . 4 2 3 2 . 6 1 . 8 1 9 8 21 Device 47 | 1 2 . . . 4 3 . . . . 2 . . . . 2 1 1 1 . 2 1 . 6 1 4 3 13 Storage 11 | 1 3 . . . . 1 . . . . . . . . . . . . . . . . . 1 . 2 1 2 Processor 13 | . . . . . . 1 . . . . 1 . . . . 1 . 1 . . 3 . . . . 2 2 2 Hackware 8 | . . . . . . 1 . . . . 1 . . . . 1 1 . 1 . 1 . . 1 . . . 1 Protection 13 | . . . . . 4 . 1 . . . . 1 . . . . . 1 . . . . . . . 1 2 3 Artifact . | . . . . . . . . . . . . . . . . . . . . . . . . . . . . . Weapon 46 | 2 3 . . 1 7 4 . . 3 . . . . . . . 3 1 . . . 4 . 6 1 3 5 3 Energy Gun 4 | 2 . . . . . . . . . . . . . . . . . 1 . . . . . . . . 1 . Energy Cannon 8 | . . . . . . . . . . . . . . . . . 1 . . . . 2 . 1 1 1 1 1 Ballistic Gun 6 | . 1 . . . 5 . . . . . . . . . . . . . . . . . . . . . . . Ballistic Cannon 2 | . . . . . . 1 . . . . . . . . . . . . . . . . . . . . 1 . Launcher 7 | . 1 . . 1 1 1 . . 1 . . . . . . . 1 . . . . . . . . . . 1 Special Weapon 7 | . 1 . . . . . . . . . . . . . . . . . . . . 1 . 4 . . . 1 Impact Weapon 3 | . . . . . 1 1 . . . . . . . . . . 1 . . . . . . . . . . . Slashing Weapon 2 | . . . . . . 1 . . 1 . . . . . . . . . . . . . . . . . . . Piercing Weapon 6 | . . . . . . . . . 1 . . . . . . . . . . . . . . 1 . 2 2 . Special Melee Weapon 1 | . . . . . . . . . . . . . . . . . . . . . . 1 . . . . . . Unidentified Prototypes 27 | . . . . . . 1 . . 1 . . . . . . . . 3 . . 1 1 . 8 . 5 5 2 Parts Lost 76 | . . . . . 1 3 . . . . . . 1 . . . 3 . . 5 . 4 4 2 3 . . 50 Power 16 | . . . . . . 2 . . . . . . . . . . . . . 1 . 1 1 . 1 . . 10 Propulsion 25 | . . . . . . 1 . . . . . . 1 . . . 2 . . 2 . . 1 1 2 . . 15 Utility 29 | . . . . . 1 . . . . . . . . . . . 1 . . 2 . 2 1 1 . . . 21 Weapon 6 | . . . . . . . . . . . . . . . . . . . . . . 1 1 . . . . 4 Highest Loss Streak 10 | . . . . . 1 2 . . . . . . 1 . . . 1 . . 5 . 2 4 2 3 . . 10 To Critical Strikes . | . . . . . . . . . . . . . . . . . . . . . . . . . . . . . Average Backups 12 | 2 13 20 19 20 19 10 7 7 8 8 7 8 8 8 8 7 7 8 9 8 4 4 5 5 5 8 22 20 Power 1 | . 1 2 2 2 1 . . . . . . 1 . . . . . . 1 . 1 . . . . . 1 2 Propulsion 1 | . 1 2 2 2 4 1 . . . . . . . . . . . . 1 1 . . 1 . . . 1 3 Utility 5 | . 4 8 7 7 7 5 4 4 3 3 3 3 3 4 4 3 3 3 4 3 1 2 2 2 3 4 10 9 Weapon 3 | 1 5 8 8 7 5 3 2 2 3 4 3 3 3 3 3 3 3 2 3 2 1 1 1 1 1 2 6 4 Tool/Special . | . . . . . . . . . . . . . . . . . . . . . . . . . . . . . Unused Backups 43 | . . . 2 3 8 4 1 . . . 1 . 1 . . . . 1 . 1 2 . . 1 . 5 8 5 Power 5 | . . . . . 2 . . . . . . . 1 . . . . . . . 1 . . . . 1 . . Propulsion 9 | . . . . . 4 1 . . . . . . . . . . . . . . 1 . . . . . 2 1 Utility 16 | . . . 2 1 1 1 1 . . . . . . . . . . 1 . 1 . . . . . 2 2 4 Weapon 12 | . . . . 2 1 2 . . . . 1 . . . . . . . . . . . . 1 . 2 3 . Tool/Special 1 | . . . . . . . . . . . . . . . . . . . . . . . . . . . 1 . Average Slot Usage (%) 94 | . 99 100 100 100 99 96 92 92 96 92 93 100 87 86 86 98 96 85 87 87 61 92 82 90 98 94 99 91 Engine 3 | . 14 14 14 14 5 3 . . . . . . . . . . . . . . 4 5 4 . . . . . Core 3 | . . . . . 3 3 7 7 7 7 5 6 6 6 6 10 9 5 5 4 . . . 7 1 4 4 2 Reactor 2 | . . . . . . . . . . . . . . . . . . . . . . . . 2 8 4 7 9 Treads 7 | . 28 28 28 28 26 . . . . . . . . . . . . . . . . . . . 1 4 . . Hover 8 | . . . . . . . . . . . 2 . . . . . . . . . 3 17 20 21 19 23 30 25 Flight 14 | . . . . . . 36 38 38 38 38 35 40 33 33 33 34 34 29 29 28 15 12 10 7 8 . . . Device 12 | . 13 14 14 14 13 9 11 15 15 15 14 13 6 6 6 10 10 10 10 10 6 10 5 8 15 14 9 15 Storage 7 | . 14 14 14 14 9 7 7 7 7 7 6 6 6 6 6 5 5 4 5 4 . . . 2 5 6 7 7 Processor 7 | . . . . . . 6 7 7 7 7 6 6 6 6 6 10 5 9 5 5 8 15 15 12 10 10 16 12 Hackware 4 | . . . . . . 3 . . . . 4 6 6 6 6 5 10 5 10 11 6 10 5 7 5 4 4 6 Protection 2 | . . . . . 13 . 2 . . . . . . . . . . . . . 4 5 4 2 5 3 3 2 Energy Gun 2 | . 15 14 14 13 . . . . . . . . . . . . . . . . . . . . . . . . Ballistic Gun 4 | . 11 14 14 14 23 8 . . . . . . . . . . . . . . . . . . . . . . Impact Weapon 2 | . . . . . 2 7 7 7 7 7 6 6 6 6 6 5 4 4 4 4 . . . . . . . . Slashing Weapon 2 | . . . . . . 3 7 7 7 7 6 6 6 6 6 5 4 5 5 5 5 5 4 . . . . . Piercing Weapon 4 | . . . . . . . . . 3 . 1 5 6 6 6 4 4 4 5 5 5 4 5 7 10 10 12 9 Peak Build Rating 197 | 9 9 9 9 10 39 49 43 43 49 46 61 64 64 52 52 83 84 81 74 76 86 100 94 134 132 172 185 197 Average Rating 83 | 5 8 9 9 9 34 43 39 40 43 43 56 61 52 52 52 78 78 69 71 71 55 94 91 109 127 144 181 176 On Entrance 60 | . 9 9 9 9 10 38 38 40 40 43 43 61 64 52 52 52 83 66 70 72 37 86 94 76 126 132 172 180 Naked Turns . | . . . . . . . . . . . . . . . . . . . . . . . . . . . . . Heaviest Build 183 | 11 47 47 47 47 74 73 24 22 25 24 27 30 26 26 26 34 40 35 35 28 15 27 26 55 64 159 183 182 Greatest Support 126 | 40 40 40 40 40 84 68 25 25 25 25 32 32 26 26 26 34 34 28 28 28 15 45 45 60 61 126 108 108 Greatest Overweight (x) 3 | . 1 1 1 1 1 2 . . . . . . . . . . 1 1 1 . 1 . 1 1 1 1 1 3 Average Overweight (x) . | . . 1 1 1 . . . . . . . . . . . . . . . . . . . . . . 1 1 Largest Inventory Capacity 25 | 8 20 20 20 20 20 20 10 10 10 10 10 10 10 10 10 10 10 10 10 10 5 5 5 5 5 25 25 25 Average Capacity 14 | 7 17 20 20 20 20 10 10 10 10 10 10 10 10 10 10 10 10 9 10 9 5 5 5 5 5 9 25 24 Most Carried 25 | 3 20 20 20 20 20 20 10 10 10 10 10 10 10 10 10 10 10 10 10 10 5 5 5 5 5 25 25 25 Average Carried 13 | 2 13 20 19 19 19 10 9 9 9 9 9 10 9 10 10 9 9 9 10 9 4 4 5 4 5 8 24 22 Final Capacity 25 | 8 20 20 20 20 20 10 10 10 10 10 10 10 10 10 10 10 10 10 10 5 5 5 5 5 5 25 25 5 Final Carried 25 | 3 20 20 20 20 20 8 10 10 10 10 10 10 10 10 10 10 10 10 10 5 5 5 5 5 5 25 25 4 Class Distribution -------------------- 30% | Scavenger-Gladiator 18% | Mutant 10% | Commander-Scout 8% | Scout 6% | Ninja 6% | Sprinter 3% | Skirmisher 3% | Hacker-Scout Dominant Class ---------------- Mutant | -10/Materials Mutant | -10/Mines Mutant | -10/Exiles Mutant | -9/Mines Skirmisher | -8/Materials Scout | -7/Factory Sprinter | -7/Lower Caves Sprinter | -7/Lower Caves Sprinter | -7/Zion Sprinter | -6/Proximity Caves Ninja | -6/Factory Sprinter | -6/Lower Caves Sprinter | -6/Lower Caves Sprinter | -6/Data Miner Sprinter | -5/Proximity Caves Ninja | -5/Factory Hacker-Scout | -5/Extension Commander-Scout | -5/Cetus Commander-Scout | -5/Archives Commander-Scout | -5/Hub_04(d) Scout | -4/Factory Scavenger-Gladiator | -4/Upper Caves Scavenger-Gladiator | -4/Upper Caves Hacker-Gladiator | -4/Warlord Scavenger-Gladiator | -3/Proximity Caves Scavenger-Gladiator | -3/Research Scavenger-Gladiator | -2/Research Scavenger-Gladiator | -1/Access Resources | -11 -10 -10 -10 -9 -8 -7 -7 -7 -7 -6 -6 -6 -6 -6 -5 -5 -5 -5 -5 -5 -4 -4 -4 -4 -3 -3 -2 -1 ----------- Run | Yrd Mat Min Exi Min Mat Fac Low Low Zio Pro Fac Low Low Dat Pro Fac Ext Cet Arc Hub Fac Upp Upp War Pro Res Res Acc Matter Collected 5865 | 270 311 . 60 40 624 608 156 31 65 13 203 128 47 . . 390 530 199 85 . 145 80 63 230 67 290 290 940 Remotely 309 | . . . . . 309 . . . . . . . . . . . . . . . . . . . . . . . Salvage Created 8266 | 139 356 . . 24 947 569 . . . 13 291 25 58 . . 745 614 70 266 108 266 98 109 268 178 562 441 2119 Parts 434 | 16 28 . . 4 42 34 . . . 2 11 . . . . 29 40 3 17 7 9 3 6 3 11 15 22 132 Haulers Intercepted 23 | . 1 . . . 4 3 . . . . 1 . . . . 3 . . . 1 2 . . . . 4 . 4 Recyclers Shooed 4 | . . . . . 2 . . . . . . . . . . . . . . 1 . . . . . . . 1 Parts Field Recycled . | . . . . . . . . . . . . . . . . . . . . . . . . . . . . . Retrieved Matter . | . . . . . . . . . . . . . . . . . . . . . . . . . . . . . Parts Self-Destructed 29 | . . . . . . . 4 . . 3 . 6 . . . . . . . . . 3 5 . 8 . . . Prevented 5 | . . . . . . . 1 . . 1 . . . . . . . . . . . 3 . . . . . . Kills | -11 -10 -10 -10 -9 -8 -7 -7 -7 -7 -6 -6 -6 -6 -6 -5 -5 -5 -5 -5 -5 -4 -4 -4 -4 -3 -3 -2 -1 ------- Run | Yrd Mat Min Exi Min Mat Fac Low Low Zio Pro Fac Low Low Dat Pro Fac Ext Cet Arc Hub Fac Upp Upp War Pro Res Res Acc Combat Hostiles Destroyed 112 | . 7 . . 4 14 11 . . . 1 . 1 . . . 2 9 . . . . 1 4 16 2 . 8 32 Melee 48 | . . . . . . 4 . . . 1 . . . . . 2 . . . . . 1 4 . 1 . 8 27 Guns 13 | . 5 . . . 8 . . . . . . . . . . . . . . . . . . . . . . . Cannons 1 | . . . . . . . . . . . . . . . . . 1 . . . . . . . . . . . AOE 46 | . 2 . . 4 6 6 . . . . . . . . . . 7 . . . . . . 16 . . . 5 Classes Destroyed 21 | 2 5 . . . 3 2 . . . 1 . . . . . . . . . . . 1 . 4 1 . 1 1 Worker 7 | . . . . . 2 1 . . . . . . . . . 1 . . . 1 1 . . . . . . 1 Builder 11 | . 1 . . . . 3 . . . . . . . . . . 5 . . . . . . . . . . 2 Tunneler 7 | 5 1 . . . . . . . . . . . . . . . . . . . . . . . . . . 1 Hauler 23 | . 1 . . . 4 3 . . . . 1 . . . . 3 . . . 1 2 . . . . 4 . 4 Recycler 11 | 1 1 . . . 3 2 . . . . 1 . . . . 1 1 . . . . . . . . 1 . . Minesweeper 1 | . . . . . . . . . . . . . . . . . . . . . . 1 . . . . . . Operator 15 | . . . . . . 3 . . . . 1 . . . . 1 1 . 8 . . . . . . . 1 . Drone 1 | . . . . . . . . . . 1 . . . . . . . . . . . . . . . . . . Watcher 13 | . 2 . . . 2 . . . . . 1 . . . . 4 1 1 . . 1 . . . . . . 1 Swarmer 40 | . 3 . . 4 . 9 . . . . . 1 . . . . 5 . . . . . 4 . . . 4 10 Saboteur 1 | . . . . . . . . . . . . . . . . . . . . . . . . 1 . . . . Grunt 22 | . 4 . . . 7 . . . . . . . . . . . . . . . . . . 9 . . . 2 Brawler 1 | . . . . . . . . . . . . . . . . . . . . . . . . 1 . . . . Protector 2 | . . . . . . . . . . . . . . . . . . . . . . . . 2 . . . . Sentry 10 | . . . . . 6 . . . . . . . . . . . 2 . . . . . . . . . 1 1 Demolisher 2 | . . . . . . . . . . . . . . . . . . . . . . . . . . . 2 . Hunter 5 | . . . . . 1 1 . . . . . . . . . . 2 . . . . . . . . . . 1 Programmer 23 | . . . . . . 1 . . . . . . . . . 2 . . . . . 1 . 1 1 . . 17 Heavy 1 | . . . . . . . . . . . . . . . . . . . . . . . . . . . . 1 Behemoth 1 | . . . . . . . . . . . . . . . . . . . . . . . . . 1 . . . Striker 3 | . . . . . . . . . . . . . . . . . . . . . . . . 2 . . 1 . Best Kill Streak 10 | 3 4 . . 4 6 5 . . . 1 2 1 . . . 3 5 1 7 1 1 1 4 10 1 2 4 9 Combat Bots Only 10 | . 3 . . 4 3 4 . . . 1 . 1 . . . 2 5 . . . . 1 4 10 1 . 4 7 Max Kills in Single Turn 5 | 1 3 . . 2 4 3 . . . 1 1 1 . . . 1 4 1 1 1 1 1 1 5 1 1 1 3 Gunslinging 1 | . 1 . . . . . . . . . . . . . . . . . . . . . . . . . . . Exploded 5 | . 2 . . 2 1 3 . . . . . . . . . . 4 . . . . . . 5 . . . 3 Melee 1 | . . . . . . 1 . . . 1 . . . . . 1 . . . . . 1 1 . 1 . 1 1 Uniques/NPCs Destroyed 1 | . . . . . . . . . . . . . . . . . . 1 . . . . . . . . . . A7 (-5/Cetus) Combat | -11 -10 -10 -10 -9 -8 -7 -7 -7 -7 -6 -6 -6 -6 -6 -5 -5 -5 -5 -5 -5 -4 -4 -4 -4 -3 -3 -2 -1 -------- Run | Yrd Mat Min Exi Min Mat Fac Low Low Zio Pro Fac Low Low Dat Pro Fac Ext Cet Arc Hub Fac Upp Upp War Pro Res Res Acc Hostile Shots Fired 1077 | . 24 . . 6 66 77 . 4 . . 9 1 25 . 4 2 35 1 5 15 12 47 52 8 17 2 57 608 Missed 377 | . 5 . . . 22 37 . 2 . . 5 1 10 . 2 1 13 1 2 4 6 17 18 3 4 1 19 204 Hits 700 | . 19 . . 6 44 40 . 2 . . 4 . 15 . 2 1 22 . 3 11 6 30 34 5 13 1 38 404 Melee 3 | . . . . . . . . . . . . . . . . . . . . . . . . . . . 3 . Projectile 697 | . 19 . . 6 44 40 . 2 . . 4 . 15 . 2 1 22 . 3 11 6 30 34 5 13 1 35 404 AOE 12 | . . . . . . . . . . . . . . . . . . . . 3 . . . . . . 8 1 Critical Strikes 45 | . . . . . 3 1 . . . . . . . . . . 1 . . 2 . 2 . . 1 . . 35 Actively Blocked 13 | . . . . . . . . . . . . . . . . . . . . . . 2 . . 1 . . 10 Part Disruptions 6 | . . . . . . . . . . . . . . . . . . . . . . . . . . . . 6 Damage Taken 14541 | . 223 . . 79 689 546 . 34 . . 28 . 160 . 38 23 383 26 84 689 59 592 565 187 405 10 736 8985 Core 2943 | . 37 . . 7 151 99 . 18 . . 10 . 54 . 38 . 147 . . 419 19 98 133 . 22 10 67 1614 Absorbed by Shields 1783 | . . . . . . . . . . . . . . . . . 49 . . . . . . . . 11 655 1068 Ignored by Resistances 63 | . . . . . 17 . . . . . . . . . . . . . . . . . . . . . 46 . Regen/Repaired (Parts) 238 | . . . . . . 8 . . . . . . . . . . . . . . . . . 123 . 16 91 . Core Remaining (%) 82 | 100 . . . 82 72 . . . . 83 . . . . 88 . . . . 43 . . . . 76 99 95 . Volleys Fired 285 | 9 39 . . 2 43 19 4 2 . 2 7 5 2 . 1 14 36 4 3 2 . 2 5 15 36 19 4 10 Largest 3 | 2 2 . . 1 3 2 1 1 . 1 1 1 1 . 1 1 1 1 1 1 . 1 1 1 1 1 1 1 Hottest 120 | 80 100 . . 30 80 50 40 40 . 40 40 40 40 . 40 40 120 120 120 120 . 105 98 . 113 113 120 120 Shots Fired 398 | 18 73 . . 2 105 25 4 2 . 2 7 5 2 . 1 14 36 4 3 2 . 2 5 15 36 19 4 12 Gun 192 | 18 68 . . . 94 12 . . . . . . . . . . . . . . . . . . . . . . Cannon 152 | . . . . . . 6 4 2 . 2 7 5 2 . 1 14 28 2 2 2 . 2 5 . 36 19 4 9 Launcher 36 | . 2 . . 2 11 7 . . . . . . . . . . 8 2 1 . . . . . . . . 3 Special 18 | . 3 . . . . . . . . . . . . . . . . . . . . . . 15 . . . . Kinetic 196 | . 27 . . . 90 18 4 2 . 2 7 5 2 . 1 14 21 . . . . . . . . . . 3 Thermal 150 | 18 44 . . . 4 . . . . . . . . . . . 7 2 2 2 . 2 5 . 36 19 4 5 Explosive 51 | . 2 . . 2 11 7 . . . . . . . . . . 8 2 1 . . . . 15 . . . 3 Electromagnetic 1 | . . . . . . . . . . . . . . . . . . . . . . . . . . . . 1 Robot Hit Streak 13 | 5 11 . . . 13 5 . . . . . . . . . . 10 1 1 . . . . . . 2 . 3 Robot Miss Streak 3 | 1 3 . . . 3 2 . . . . . . . . . . 1 1 . . . . . 1 . . . 1 Penetration Max . | . . . . . . . . . . . . . . . . . . . . . . . . . . . . . Secondary Targets 1 | . 1 . . . . . . . . . . . . . . . . . . . . . . . . . . . Max Gunslinging Chain 1 | . 1 . . . . . . . . . . . . . . . . . . . . . . . . . . . Shots Hit Robots 391 | 11 42 . . . 80 27 . . . 1 4 1 3 . . 22 20 12 12 5 5 6 5 . 7 11 26 91 Core Hits 292 | 7 24 . . 4 58 21 . . . 1 3 . . . . 11 19 3 5 2 3 2 4 51 1 5 14 54 Critical Kills 3 | . 1 . . . 1 1 . . . . . . . . . . . . . . . . . . . . . . Critical Parts Destroyed 6 | . . . . . . 2 . . . . . 1 . . . 1 2 . . . . . . . . . . . Critical Strikes 29 | . 1 . . . 1 4 . . . . . 1 . . . 2 2 1 . 1 . 2 . 1 1 . 1 11 Destroy 2 | . 1 . . . 1 . . . . . . . . . . . . . . . . . . . . . . . Smash 7 | . . . . . . 3 . . . . . 1 . . . 1 2 . . . . . . . . . . . Sever 7 | . . . . . . 1 . . . . . . . . . 1 . 1 . 1 . 2 . 1 . . . . Impale 12 | . . . . . . . . . . . . . . . . . . . . . . . . . . . 1 11 Sunder 1 | . . . . . . . . . . . . . . . . . . . . . . . . . 1 . . . Melee Attacks 608 | . . . . . 6 81 13 6 1 9 37 5 6 . 2 84 27 31 16 21 24 13 26 . 9 12 44 135 Impact 135 | . . . . . 6 62 10 5 1 7 5 1 . . . 14 6 15 2 1 . . . . . . . . Slashing 237 | . . . . . . 19 3 1 . 2 31 3 6 . 2 62 19 13 13 16 20 10 17 . . . . . Piercing 198 | . . . . . . . . . . . 1 1 . . . 8 2 3 1 4 4 3 9 . 7 7 32 116 Entropic 38 | . . . . . . . . . . . . . . . . . . . . . . . . . 2 5 12 19 Sneak Attacks 67 | . . . . . . 7 . . . . 2 . 1 . . 7 7 11 8 3 3 1 . . . 7 . 10 Combat Hostiles 2 | . . . . . . . . . . . . . 1 . . . 1 . . . . . . . . . . . Follow-up Attacks 50 | . . . . . . 2 . . . 1 . 1 . . . 6 3 3 . 1 . 2 . . . 2 10 19 Damage Inflicted 27069 | 130 653 . . 197 1938 2213 . . . 53 354 47 200 . . 1379 2062 925 1193 373 420 333 208 6081 339 843 1268 5860 Guns 1755 | 130 473 . . . 1048 104 . . . . . . . . . . . . . . . . . . . . . . Cannons 556 | . . . . . . . . . . . . . . . . . 247 33 75 37 . . . . . 78 . 86 Explosions 10393 | . 180 . . 197 890 818 . . . . . . . . . . 963 171 86 . . . . 6023 . . . 1065 Melee 14307 | . . . . . . 1291 . . . 53 354 47 200 . . 1379 852 721 1032 336 420 333 208 . 339 765 1268 4709 Ramming . | . . . . . . . . . . . . . . . . . . . . . . . . . . . . . Kinetic 1322 | . 180 . . . 1038 104 . . . . . . . . . . . . . . . . . . . . . . Thermal 948 | 130 293 . . . 10 . . . . . . . . . . . 247 33 75 37 . . . . . 78 . 45 Explosive 10393 | . 180 . . 197 890 818 . . . . . . . . . . 963 171 86 . . . . 6023 . . . 1065 Electromagnetic 41 | . . . . . . . . . . . . . . . . . . . . . . . . . . . . 41 Impact 1482 | . . . . . . 1091 . . . . 122 47 . . . 42 114 66 . . . . . . . . . . Slashing 5443 | . . . . . . 200 . . . 53 232 . 200 . . 1211 738 559 1032 303 420 333 104 58 . . . . Piercing 5857 | . . . . . . . . . . . . . . . . 126 . 96 . 33 . . 104 . 149 527 827 3995 Entropic 1583 | . . . . . . . . . . . . . . . . . . . . . . . . . 190 238 441 714 Highest Corruption 51 | . . . . . . 2 1 1 1 . . . . . . 3 3 3 3 4 . 9 9 9 1 . 1 51 Average Corruption 7 | . . . . . . 1 1 1 1 . . . . . . 2 3 3 2 2 . 3 9 9 1 . 1 22 Corruption Purged 10 | . . . . . . 2 . . . . . . . . . . . . 3 . . . . . . . . 5 Corruption Blocked . | . . . . . . . . . . . . . . . . . . . . . . . . . . . . . Effects 148 | . . . . . . 12 2 . 1 . . . . . . 9 12 6 . . . 4 14 . 2 . 8 78 Message Errors 40 | . . . . . . 6 1 . . . . . . . . 3 4 . . . . . 3 . . . 4 19 Matter Fused 42 | . . . . . . 2 . . . . . . . . . 3 3 1 . . . 4 6 . 1 . . 22 Heat Flow Errors 13 | . . . . . . 2 . . 1 . . . . . . . 2 1 . . . . . . . . 1 6 Energy Discharges 18 | . . . . . . . . . . . . . . . . 2 1 2 . . . . 2 . . . 1 10 Parts Rejected 5 | . . . . . . . . . . . . . . . . . 1 . . . . . . . . . 1 3 Data Loss (minor) 19 | . . . . . . 1 1 . . . . . . . . 1 1 1 . . . . 3 . 1 . . 10 Data Loss (major) 4 | . . . . . . 1 . . . . . . . . . . . 1 . . . . . . . . . 2 Misfires 2 | . . . . . . . . . . . . . . . . . . . . . . . . . . . . 2 Alerts 2 | . . . . . . . . . . . . . . . . . . . . . . . . . . . 1 1 Misdirections 3 | . . . . . . . . . . . . . . . . . . . . . . . . . . . . 3 Overload Shots . | . . . . . . . . . . . . . . . . . . . . . . . . . . . . . Overflow Damage 2554 | . . . . . . 469 . . . . 98 47 87 . . 129 386 134 429 14 70 65 3 164 32 9 43 375 Projectiles . | . . . . . . . . . . . . . . . . . . . . . . . . . . . . . Explosions 361 | . . . . . . 20 . . . . . . . . . . . 32 . . . . . 164 . . . 145 Melee 2193 | . . . . . . 449 . . . . 98 47 87 . . 129 386 102 429 14 70 65 3 . 32 9 43 230 Knockbacks 4 | . . . . . . 3 . . . . . 1 . . . . . . . . . . . . . . . . Impact 4 | . . . . . . 3 . . . . . 1 . . . . . . . . . . . . . . . . Kinetic . | . . . . . . . . . . . . . . . . . . . . . . . . . . . . . Secondary . | . . . . . . . . . . . . . . . . . . . . . . . . . . . . . Self-Inflicted Damage 102 | . . . . 33 69 . . . . . . . . . . . . . . . . . . . . . . . Shots 5 | . . . . 2 3 . . . . . . . . . . . . . . . . . . . . . . . Rammed 1 | . . . . . . . . . . . . . . . . . . . . . . . 1 . . . . . Targets Rammed 1 | . . . . . . . . . . . . . . . . . . . . . . . 1 . . . . . Kicked . | . . . . . . . . . . . . . . . . . . . . . . . . . . . . . Crushed . | . . . . . . . . . . . . . . . . . . . . . . . . . . . . . Highest Temperature 437 | 36 57 . . . 41 369 25 4 258 4 65 2 5 1 7 321 262 136 21 44 . 124 230 3 80 437 145 273 Average Temperature 44 | 11 18 . . . 16 42 7 2 50 2 27 2 1 1 2 114 75 47 12 16 . 61 121 3 30 135 52 56 Received Heat Transfer 690 | . 114 . . . 243 12 . . . . 6 . 27 . 18 . 49 . 18 . . . . . 36 4 24 139 Effects 5 | . . . . . . 2 . . 3 . . . . . . . . . . . . . . . . . . . Energy Bleed 2 | . . . . . . 1 . . 1 . . . . . . . . . . . . . . . . . . . Interference 3 | . . . . . . 1 . . 2 . . . . . . . . . . . . . . . . . . . Siege Activations . | . . . . . . . . . . . . . . . . . . . . . . . . . . . . . Martial Activations . | . . . . . . . . . . . . . . . . . . . . . . . . . . . . . Shielding Activations . | . . . . . . . . . . . . . . . . . . . . . . . . . . . . . Robots Disrupted . | . . . . . . . . . . . . . . . . . . . . . . . . . . . . . Combat Hostiles . | . . . . . . . . . . . . . . . . . . . . . . . . . . . . . Robots Corrupted 7 | . . . . . . 3 . . . . . 1 . . . 1 2 . . . . . . . . . . . Combat Hostiles 3 | . . . . . . 1 . . . . . 1 . . . . 1 . . . . . . . . . . . Parts Fried 9 | . . . . . . 5 . . . . 2 . . . . . 2 . . . . . . . . . . . Impact Corruptions 19 | . . . . . . 11 . . . . 1 2 . . . 2 2 1 . . . . . . . . . . Robots Melted . | . . . . . . . . . . . . . . . . . . . . . . . . . . . . . Combat Hostiles . | . . . . . . . . . . . . . . . . . . . . . . . . . . . . . Parts Melted 6 | 2 1 . . . . . . . . . . . . . . . 3 . . . . . . . . . . . Heat Transferred 1952 | 300 675 . . . 25 . . . . . . . . . . . 560 80 160 41 . . . . . 74 . 37 Parts Sabotaged . | . . . . . . . . . . . . . . . . . . . . . . . . . . . . . Parts Stolen . | . . . . . . . . . . . . . . . . . . . . . . . . . . . . . Parts Stripped . | . . . . . . . . . . . . . . . . . . . . . . . . . . . . . Power Chain Reactions . | . . . . . . . . . . . . . . . . . . . . . . . . . . . . . Alert | -11 -10 -10 -10 -9 -8 -7 -7 -7 -7 -6 -6 -6 -6 -6 -5 -5 -5 -5 -5 -5 -4 -4 -4 -4 -3 -3 -2 -1 ------- Run | Yrd Mat Min Exi Min Mat Fac Low Low Zio Pro Fac Low Low Dat Pro Fac Ext Cet Arc Hub Fac Upp Upp War Pro Res Res Acc Maximum Alert Level 2 | . . . . . . 1 . . . . 1 . . . . . 2 2 1 2 . . . . . . . 1 Low Security (%) 82 | 100 100 100 . 100 100 54 . . . . 28 . . . . 100 81 . 70 66 100 . . . . 100 100 70 Level 1 16 | . . . . . . 45 . . . . 71 . . . . . 12 76 29 14 . . . . . . . 29 Level 2 1 | . . . . . . . . . . . . . . . . . 5 23 . 18 . . . . . . . . Level 3 . | . . . . . . . . . . . . . . . . . . . . . . . . . . . . . Level 4 . | . . . . . . . . . . . . . . . . . . . . . . . . . . . . . Level 5 . | . . . . . . . . . . . . . . . . . . . . . . . . . . . . . High Security . | . . . . . . . . . . . . . . . . . . . . . . . . . . . . . Max Security . | . . . . . . . . . . . . . . . . . . . . . . . . . . . . . Peak Influence 585 | 5 137 . . 100 170 363 . . . . 330 . . . . 116 585 480 363 506 188 . . . . 45 98 312 Initial 324 | . . . . . . 32 . . . . 302 . . . . 116 . 324 176 . 186 . . . . . . . Average 90 | 1 40 . . 18 70 139 . . . . 244 . . . . 44 127 350 123 152 131 . . . . 3 15 119 Influence Increases 7571 | 30 250 . . 100 567 714 . . . 105 486 20 80 . 195 306 1156 406 287 650 216 25 80 320 60 137 238 1143 Destroy 0b10 Robot/C 2900 | . 140 . . 80 280 220 . . . 40 . 20 . . . 40 480 160 80 140 . 20 80 280 40 . 160 640 Destroy 0b10 Robot/NC 490 | 30 30 . . . 55 60 . . . 5 20 . 5 . . 50 45 10 45 25 20 5 . 10 . 25 5 45 Destroy Leader 542 | . 36 . . 10 92 56 . . . . 4 . . . . 24 62 . . 54 6 . . . 20 8 40 130 Allied During Kill 723 | . . . . . . . . . . . . . . . . . 267 140 125 184 . . . . . . . 7 Successful Hack 456 | . 12 . . . 26 84 . . . . 60 . . . . 74 . . . 34 31 . . . . 57 . 78 Select Force Hacks 90 | . . . . . 30 30 . . . . . . . . . 30 . . . . . . . . . . . . Disable Machine 210 | . 15 . . . . 30 . . . . 30 . . . . . 45 . 15 60 . . . . . . 15 . Destroy Structure 930 | . 17 . . 10 69 69 . . . . 27 . . . . 88 152 96 22 138 24 . . . . 32 18 168 Advance Influence 300 | . . . . . . . . . . . 300 . . . . . . . . . . . . . . . . . Partial Spotted 225 | . . . . . . 90 . . . . 45 . . . . . 15 . . 15 45 . . . . . . 15 Lose Combat Pursuer 705 | . . . . . 15 75 . . . 60 . . 75 . 195 . 90 . . . 90 . . 30 . 15 . 60 Influence Decreases 7490 | 30 250 . . 100 494 434 251 91 11 100 329 151 67 44 10 491 577 545 727 270 472 149 38 150 272 137 238 1062 Entered New Map 1402 | . . . . . . 41 131 21 11 . 3 61 7 44 . 69 . 255 264 . 194 47 . 42 212 . . . Time Decay 4918 | 30 250 . . 100 494 363 120 70 . 40 326 90 50 . 10 415 387 190 423 180 278 92 18 88 40 137 238 489 Lost Part 690 | . . . . . . 30 . . . . . . 10 . . . 30 . . 50 . 10 20 20 20 . . 500 Lost Ally 437 | . . . . . . . . . . 60 . . . . . 7 160 100 40 40 . . . . . . . 30 Purge Threat 43 | . . . . . . . . . . . . . . . . . . . . . . . . . . . . 43 Squads Dispatched 49 | . 1 . . 1 2 12 . . . . 2 . . . . 6 1 . . 2 2 . . . . 8 1 11 Investigation 15 | . . . . 1 2 5 . . . . . . . . . 1 . . . . . . . . . 5 . 1 Extermination 19 | . . . . . . 4 . . . . 2 . . . . 3 . . . 1 1 . . . . . . 8 Reinforcement 15 | . 1 . . . . 3 . . . . . . . . . 2 1 . . 1 1 . . . . 3 1 2 Assault . | . . . . . . . . . . . . . . . . . . . . . . . . . . . . . Garrison . | . . . . . . . . . . . . . . . . . . . . . . . . . . . . . Intercept . | . . . . . . . . . . . . . . . . . . . . . . . . . . . . . Searches Triggered . | . . . . . . . . . . . . . . . . . . . . . . . . . . . . . Data Miner Redirects 1 | . . . . . . . . . . . . . . . . . . . . . . . . . . . . 1 Construction Impeded . | . . . . . . . . . . . . . . . . . . . . . . . . . . . . . Haulers Reinforced 2 | . . . . . . 1 . . . . . . . . . . . . . . . . . . . 1 . . Active Scanning Responses . | . . . . . . . . . . . . . . . . . . . . . . . . . . . . . Cargo Convoy Interrupts . | . . . . . . . . . . . . . . . . . . . . . . . . . . . . . Stealth | -11 -10 -10 -10 -9 -8 -7 -7 -7 -7 -6 -6 -6 -6 -6 -5 -5 -5 -5 -5 -5 -4 -4 -4 -4 -3 -3 -2 -1 --------- Run | Yrd Mat Min Exi Min Mat Fac Low Low Zio Pro Fac Low Low Dat Pro Fac Ext Cet Arc Hub Fac Upp Upp War Pro Res Res Acc Distress Signals 25 | . 1 . . . 2 2 . . . . . . . . . . 1 . . 1 2 . . . . 5 7 4 Communications Jammed 16 | . . . . . . 3 . . . . . . . . . . . . . . . . . . . . . 13 Distress Signals 12 | . . . . . . 3 . . . . . . . . . . . . . . . . . . . . . 9 Times Spotted 312 | . 16 . . 4 20 30 1 3 . 6 8 1 4 . 12 14 26 9 6 12 16 3 5 32 2 14 18 50 Peak Tracking Total 13 | . 3 . . 4 4 4 4 3 . 6 2 1 6 . 13 4 5 5 2 12 5 2 5 12 1 7 4 13 Tactical Retreats 34 | . . . . . 1 11 . . . 2 . . 2 . 1 1 5 . . . 4 . . 2 . 1 . 4 Traps | -11 -10 -10 -10 -9 -8 -7 -7 -7 -7 -6 -6 -6 -6 -6 -5 -5 -5 -5 -5 -5 -4 -4 -4 -4 -3 -3 -2 -1 ------- Run | Yrd Mat Min Exi Min Mat Fac Low Low Zio Pro Fac Low Low Dat Pro Fac Ext Cet Arc Hub Fac Upp Upp War Pro Res Res Acc Traps Triggered 17 | . . . . . . 6 . . . . 1 . . . . 1 7 . . . 1 . . . . . . 1 Indirectly . | . . . . . . . . . . . . . . . . . . . . . . . . . . . . . Trap Hack Attempts . | . . . . . . . . . . . . . . . . . . . . . . . . . . . . . Triggered . | . . . . . . . . . . . . . . . . . . . . . . . . . . . . . Disarmed . | . . . . . . . . . . . . . . . . . . . . . . . . . . . . . Reprogrammed . | . . . . . . . . . . . . . . . . . . . . . . . . . . . . . Reused . | . . . . . . . . . . . . . . . . . . . . . . . . . . . . . Traps Extracted . | . . . . . . . . . . . . . . . . . . . . . . . . . . . . . Installed . | . . . . . . . . . . . . . . . . . . . . . . . . . . . . . Triggered . | . . . . . . . . . . . . . . . . . . . . . . . . . . . . . Machines | -11 -10 -10 -10 -9 -8 -7 -7 -7 -7 -6 -6 -6 -6 -6 -5 -5 -5 -5 -5 -5 -4 -4 -4 -4 -3 -3 -2 -1 ---------- Run | Yrd Mat Min Exi Min Mat Fac Low Low Zio Pro Fac Low Low Dat Pro Fac Ext Cet Arc Hub Fac Upp Upp War Pro Res Res Acc Machines Disabled 18 | . 1 . . . . 2 . . . . 2 . . . . . 5 . 1 4 . 1 . 1 . . 1 . Max in Single Turn 1 | . 1 . . . . 1 . . . . 1 . . . . . 1 . . . . 1 . 1 . . 1 . Garrison Access 9 | . . . . . . 3 . . . . 1 . . . . 1 . . . 1 1 . . . . . 2 . Network Hub 3 | . . . . . . . . . . . . . . . . . . . . 3 . . . . . . . . Machines Repaired . | . . . . . . . . . . . . . . . . . . . . . . . . . . . . . Machines Dismantled . | . . . . . . . . . . . . . . . . . . . . . . . . . . . . . Machines Sabotaged . | . . . . . . . . . . . . . . . . . . . . . . . . . . . . . Overloaded Fab Kills . | . . . . . . . . . . . . . . . . . . . . . . . . . . . . . Hacking | -11 -10 -10 -10 -9 -8 -7 -7 -7 -7 -6 -6 -6 -6 -6 -5 -5 -5 -5 -5 -5 -4 -4 -4 -4 -3 -3 -2 -1 --------- Run | Yrd Mat Min Exi Min Mat Fac Low Low Zio Pro Fac Low Low Dat Pro Fac Ext Cet Arc Hub Fac Upp Upp War Pro Res Res Acc Machines Accessed 128 | . 8 . 2 1 13 25 1 . . . 16 . . 4 . 16 6 3 1 8 5 . . 5 . 6 2 6 Terminals 77 | . 8 . . . 11 13 . . . . 10 . . . . 11 6 3 . 7 2 . . . . 2 . 4 Fabricators 8 | . . . . . . 3 . . . . 2 . . . . 1 . . . . . . . . . 1 . 1 Repair Stations 8 | . . . . . . 3 . . . . 1 . . . . 1 . . . . 2 . . . . 1 . . Recycling Units 9 | . . . . . 1 3 . . . . 1 . . . . 2 . . . . . . . . . 2 . . Scanalyzers 1 | . . . . . 1 . . . . . . . . . . . . . . . . . . . . . . . Garrison Access 11 | . . . . . . 3 . . . . 2 . . . . 1 . . . 1 1 . . . . . 2 1 Total Hacks 387 | . 24 . 2 1 34 55 1 . . . 37 . . 31 . 58 15 8 25 25 21 . . 12 . 14 5 19 Successful 219 | . 12 . 2 1 18 30 1 . . . 9 . . 31 . 34 5 2 25 14 9 . . 12 . 6 2 6 Failed 168 | . 12 . . . 16 25 . . . . 28 . . . . 24 10 6 . 11 12 . . . . 8 3 13 Catastrophic 31 | . . . . . 2 5 . . . . 6 . . . . 3 2 3 . . 2 . . . . 2 1 5 Database Lockouts . | . . . . . . . . . . . . . . . . . . . . . . . . . . . . . Manual 164 | . 16 . 1 . 21 22 . . . . 17 . . . . 35 10 1 4 16 9 1 . 1 . 1 . 9 Terminals 241 | . 24 . . . 30 33 . . . . 29 . . . . 48 15 8 . 24 11 . . . . 7 . 12 Fabricators 22 | . . . . . . 6 . . . . 3 . . . . 4 . . . . . . . . . 3 . 6 Repair Stations 17 | . . . . . . 7 . . . . 1 . . . . 2 . . . . 6 . . . . 1 . . Recycling Units 13 | . . . . . 2 4 . . . . 1 . . . . 3 . . . . . . . . . 3 . . Scanalyzers 2 | . . . . . 2 . . . . . . . . . . . . . . . . . . . . . . . Garrison Access 20 | . . . . . . 5 . . . . 3 . . . . 1 . . . 1 4 . . . . . 5 1 Terminal Hacks 135 | . 6 . 2 1 6 9 1 . . . 3 . . 31 . 15 4 2 25 8 5 . . 12 . 2 . 3 Record 50 | . . . 1 . . . . . . . . . . 11 . . . 2 25 . . . . 11 . . . . Part Schematic 13 | . . . . . . 1 . . . . . . . 11 . 1 . . . . . . . . . . . . Robot Schematic 6 | . . . . . . . . . . . . . . 6 . . . . . . . . . . . . . . Prototype ID Bank 12 | . 1 . . . 1 2 . . . . 2 . . 3 . 1 1 . . . . . . . . 1 . . Open Door 4 | . . . . 1 . . 1 . . . . . . . . 1 . . . . . . . 1 . . . . Level Access Points 3 | . . . . . . . . . . . . . . . . . . . . 1 . . . . . 1 . 1 Branch Access Points 3 | . . . . . 1 . . . . . . . . . . 1 . . . . 1 . . . . . . . Machine Index 2 | . . . . . . . . . . . . . . . . . . . . 1 . . . . . . . 1 Terminal Index 7 | . 1 . . . 1 1 . . . . 1 . . . . 1 . . . 1 1 . . . . . . . Fabricator Index 1 | . . . . . . . . . . . . . . . . 1 . . . . . . . . . . . . Alert Level 3 | . . . . . 1 . . . . . . . . . . . . . . 1 1 . . . . . . . Unreport Threat 1 | . . . . . . . . . . . . . . . . . . . . . . . . . . . . 1 Locate Traps 14 | . 2 . . . 1 5 . . . . . . . . . 3 1 . . 1 1 . . . . . . . Maintenance Status 1 | . . . . . . . . . . . . . . . . 1 . . . . . . . . . . . . Hauler Manifests 4 | . 1 . . . 1 . . . . . . . . . . 1 . . . 1 . . . . . . . . Registered Components 1 | . . . . . . . . . . . . . . . . 1 . . . . . . . . . . . . Zone Layout 9 | . 1 . . . . . . . . . . . . . . 3 2 . . 2 1 . . . . . . . Proto ID Catalog 1 | . . . 1 . . . . . . . . . . . . . . . . . . . . . . . . . Fabricator Hacks 10 | . . . . . . 3 . . . . 1 . . . . 2 . . . . . . . . . 2 . 2 Network Status 2 | . . . . . . 1 . . . . 1 . . . . . . . . . . . . . . . . . Load Schematic 5 | . . . . . . 2 . . . . . . . . . 1 . . . . . . . . . 1 . 1 Build 3 | . . . . . . . . . . . . . . . . 1 . . . . . . . . . 1 . 1 Repair Station Hacks 4 | . . . . . . 2 . . . . . . . . . 1 . . . . 1 . . . . . . . Scan Component 3 | . . . . . . 2 . . . . . . . . . 1 . . . . . . . . . . . . Refit 1 | . . . . . . . . . . . . . . . . . . . . . 1 . . . . . . . Recycling Unit Hacks 7 | . . . . . 1 3 . . . . . . . . . 2 . . . . . . . . . 1 . . Report Inventory 7 | . . . . . 1 3 . . . . . . . . . 2 . . . . . . . . . 1 . . Scanalyzer 2 | . . . . . 2 . . . . . . . . . . . . . . . . . . . . . . . Insert Component 1 | . . . . . 1 . . . . . . . . . . . . . . . . . . . . . . . Analyze 1 | . . . . . 1 . . . . . . . . . . . . . . . . . . . . . . . Garrison Access Hacks 9 | . . . . . . 3 . . . . 1 . . . . 1 . . . 1 1 . . . . . 2 . Seal Access 9 | . . . . . . 3 . . . . 1 . . . . 1 . . . 1 1 . . . . . 2 . Unauthorized Hacks 52 | . 6 . . . 9 10 . . . . 4 . . . . 13 1 . . 5 2 . . . . 1 . 1 Terminals 43 | . 6 . . . 8 7 . . . . 3 . . . . 11 1 . . 5 2 . . . . . . . Assimilate 1 | . . . . . . . . . . . . . . . . 1 . . . . . . . . . . . . Botnet 22 | . 1 . . . 3 3 . . . . 3 . . . . 5 1 . . 5 1 . . . . . . . Operators 1 | . . . . . . 1 . . . . . . . . . . . . . . . . . . . . . . Skim 19 | . 5 . . . 5 3 . . . . . . . . . 5 . . . . 1 . . . . . . . Fabricators 4 | . . . . . . 1 . . . . 1 . . . . 1 . . . . . . . . . . . 1 Prioritize 1 | . . . . . . . . . . . . . . . . 1 . . . . . . . . . . . . Liberate 2 | . . . . . . . . . . . 1 . . . . . . . . . . . . . . . . 1 Recompile 1 | . . . . . . 1 . . . . . . . . . . . . . . . . . . . . . . Repair Stations 2 | . . . . . . 1 . . . . . . . . . . . . . . . . . . . 1 . . Patch 2 | . . . . . . 1 . . . . . . . . . . . . . . . . . . . 1 . . Recycling Units 3 | . . . . . 1 1 . . . . . . . . . 1 . . . . . . . . . . . . Tunnel 3 | . . . . . 1 1 . . . . . . . . . 1 . . . . . . . . . . . . Scanalyzers . | . . . . . . . . . . . . . . . . . . . . . . . . . . . . . Garrison Access . | . . . . . . . . . . . . . . . . . . . . . . . . . . . . . Data Cores Recovered 3 | . . . . . . 1 . . . . . . . . . 1 . . . 1 . . . . . . . . Used . | . . . . . . . . . . . . . . . . . . . . . . . . . . . . . Hacking Detections 89 | . 8 . . . 12 19 . . . . 14 . . . . 9 5 3 . 6 2 . . . . 3 2 6 Full Trace Events 5 | . . . . . 1 2 . . . . . . . . . . . . . . . . . . . 1 . 1 Feedback Events 2 | . . . . . . 2 . . . . . . . . . . . . . . . . . . . . . . Corruption 2 | . . . . . . 2 . . . . . . . . . . . . . . . . . . . . . . Feedback Blocked . | . . . . . . . . . . . . . . . . . . . . . . . . . . . . . Robot Schematics Acquired 10 | . . . . . . . . . 4 . . . . 6 . . . . . . . . . . . . . . Robots Built 1 | . . . . . . . . . . . . . . . . . . . . . . . . . . . . 1 Authchips . | . . . . . . . . . . . . . . . . . . . . . . . . . . . . . Time 56 | . . . . . . . . . . . . . . . . . . . . . . . . . . . . 56 Total Robot Build Rating 6 | . . . . . . . . . . . . . . . . . . . . . . . . . . . . 6 Part Schematics Acquired 28 | . . . . . 1 1 . . 14 . . . . 11 . 1 . . . . . . . . . . . . Parts Built 3 | . . . . . . . . . . . . . . . . 1 . . . . . . . . . 2 . . Authchips 1 | . . . . . . . . . . . . . . . . 1 . . . . . . . . . . . . Time 125 | . . . . . . . . . . . . . . . . 67 . . . . . . . . . 58 . . Total Part Build Rating 18 | . . . . . . . . . . . . . . . . 4 . . . . . . . . . 14 . . Parts Repaired . | . . . . . . . . . . . . . . . . . . . . . . . . . . . . . Time . | . . . . . . . . . . . . . . . . . . . . . . . . . . . . . Parts Recycled . | . . . . . . . . . . . . . . . . . . . . . . . . . . . . . Recycled Matter . | . . . . . . . . . . . . . . . . . . . . . . . . . . . . . Retrieved Matter . | . . . . . . . . . . . . . . . . . . . . . . . . . . . . . Retrieved Components . | . . . . . . . . . . . . . . . . . . . . . . . . . . . . . Parts Scanalyzed 1 | . . . . . 1 . . . . . . . . . . . . . . . . . . . . . . . Part Schematics Acquired 1 | . . . . . 1 . . . . . . . . . . . . . . . . . . . . . . . Parts Damaged . | . . . . . . . . . . . . . . . . . . . . . . . . . . . . . Bothacking | -11 -10 -10 -10 -9 -8 -7 -7 -7 -7 -6 -6 -6 -6 -6 -5 -5 -5 -5 -5 -5 -4 -4 -4 -4 -3 -3 -2 -1 ------------ Run | Yrd Mat Min Exi Min Mat Fac Low Low Zio Pro Fac Low Low Dat Pro Fac Ext Cet Arc Hub Fac Upp Upp War Pro Res Res Acc Used RIF Installer . | . . . . . . . . . . . . . . . . . . . . . . . . . . . . . Robots Hacked . | . . . . . . . . . . . . . . . . . . . . . . . . . . . . . Non-combat . | . . . . . . . . . . . . . . . . . . . . . . . . . . . . . Combat . | . . . . . . . . . . . . . . . . . . . . . . . . . . . . . Robot Hacks Applied . | . . . . . . . . . . . . . . . . . . . . . . . . . . . . . Relay Couplers Released . | . . . . . . . . . . . . . . . . . . . . . . . . . . . . . Fabnet Peak Effective % . | . . . . . . . . . . . . . . . . . . . . . . . . . . . . . Robots Rewired 10 | . . . . . . . . . . . . . . . . . 10 . . . . . . . . . . . Allies Hacked 2 | . . . . . . . . . . . . . . . . 1 . . . . . . . . . . . 1 Hacks Repelled . | . . . . . . . . . . . . . . . . . . . . . . . . . . . . . Allies | -11 -10 -10 -10 -9 -8 -7 -7 -7 -7 -6 -6 -6 -6 -6 -5 -5 -5 -5 -5 -5 -4 -4 -4 -4 -3 -3 -2 -1 -------- Run | Yrd Mat Min Exi Min Mat Fac Low Low Zio Pro Fac Low Low Dat Pro Fac Ext Cet Arc Hub Fac Upp Upp War Pro Res Res Acc Total Allies 30 | . . . . . . . . . 3 . . . . . . 1 20 5 . . . . . . . . . 1 Largest Group 11 | . . . . . . . . . 3 3 . . . . . 1 11 11 7 5 . . . . . . . 1 Highest-Rated Group 676 | . . . . . . . . . 102 102 . . . . . 10 437 676 539 473 . . . . . . . 49 Highest-Rated Ally 159 | . . . . . . . . . 51 51 . . . . . 10 159 137 96 96 . . . . . . . 49 Total Orders 11 | . . . . . . . . . . . . . . . . 1 . 1 . 5 . . . . 1 . . 3 STAY 5 | . . . . . . . . . . . . . . . . 1 . . . 4 . . . . . . . . FOLLOW 1 | . . . . . . . . . . . . . . . . . . . . 1 . . . . . . . . AID 1 | . . . . . . . . . . . . . . . . . . 1 . . . . . . . . . . EXPLORE 3 | . . . . . . . . . . . . . . . . . . . . . . . . . 1 . . 2 RETURN 1 | . . . . . . . . . . . . . . . . . . . . . . . . . . . . 1 Ally Attacks 215 | . . . . . . . . . . 18 . . . . . . 81 45 40 29 . . . . . . . 2 Total Damage 7327 | . . . . . . . . . . 658 . . . . . . 1809 1652 1577 1459 . . . . . . . 172 Kills 46 | . . . . . . . . . . 2 . . . . . . 16 12 5 11 . . . . . . . . Allies Corrupted 4 | . . . . . . . . . . . . . . . . . . . . 3 . . . . . . . 1 Allies Melted 2 | . . . . . . . . . . . . . . . . . . . . . . . . . . . 2 . Intel | -11 -10 -10 -10 -9 -8 -7 -7 -7 -7 -6 -6 -6 -6 -6 -5 -5 -5 -5 -5 -5 -4 -4 -4 -4 -3 -3 -2 -1 ------- Run | Yrd Mat Min Exi Min Mat Fac Low Low Zio Pro Fac Low Low Dat Pro Fac Ext Cet Arc Hub Fac Upp Upp War Pro Res Res Acc Active Infowar (turns) 19927 | 22 1255 677 584 586 1040 1305 248 144 316 129 734 192 110 19 48 1311 1049 395 1457 465 607 271 406 668 519 1244 1514 2612 Optics 11215 | . . . . . . . . . . . . . . . . 1305 1049 395 1457 465 607 271 406 668 519 1244 1514 1315 Terrain 272 | 22 250 . . . . . . . . . . . . . . . . . . . . . . . . . . . Structural 7865 | . . . . . 1012 999 124 144 316 129 599 186 88 19 48 570 634 388 1441 457 512 199 . . . . . . Seismic 4736 | . 1005 677 584 586 543 . 244 144 304 129 130 . . . . . . . . . . . . . . 390 . . Machine Analysis 4564 | . . . . . . 1305 248 144 304 129 734 192 110 19 48 1311 20 . . . . . . . . . . . Cloaking 3595 | . . . . . . . . . . . 328 168 22 . . 820 250 . . . . . . 3 . 41 283 1680 Jamming 2622 | . . . . . . 389 . . . . . . . . . . . . . . . . . . . . . 2233 ECM 299 | . . . . . . 206 38 . . . . . . . . 55 . . . . . . . . . . . . Robot Analysis Total . | . . . . . . . . . . . . . . . . . . . . . . . . . . . . . Derelict Logs Recovered 6 | . . . . 1 . . . . . 1 . 1 . . 1 . . . . . . 1 1 . . . . . Drone Launches 4 | . . . . . . . . . . . . . . . . . . . . . . . . . 1 . . 3 Drone Recoveries 2 | . . . . . . . . . . . . . . . . . . . . . . . . . . . . 2 Exploration | -11 -10 -10 -10 -9 -8 -7 -7 -7 -7 -6 -6 -6 -6 -6 -5 -5 -5 -5 -5 -5 -4 -4 -4 -4 -3 -3 -2 -1 ------------- Run | Yrd Mat Min Exi Min Mat Fac Low Low Zio Pro Fac Low Low Dat Pro Fac Ext Cet Arc Hub Fac Upp Upp War Pro Res Res Acc Turns Passed 21147 | 168 1256 677 584 586 1995 1353 248 144 316 129 734 192 110 19 48 1311 1049 395 1457 465 607 271 406 668 519 1244 1514 2682 Spaces Moved 20406 | 80 543 274 241 235 813 2393 539 337 832 268 1685 549 352 77 158 1663 1353 355 173 567 1161 409 354 957 409 987 1123 1519 Core 93 | 4 . . . . . . . . . . . . . . . . . . . . . . . . . . . 89 Treads 2240 | 76 543 274 241 235 813 15 . . . . . . . . . . . . . . . . . . . 43 . . Legs . | . . . . . . . . . . . . . . . . . . . . . . . . . . . . . Wheels . | . . . . . . . . . . . . . . . . . . . . . . . . . . . . . Hover 5553 | . . . . . . . . . . . . . . . . . . . . . 20 316 354 957 409 944 1123 1430 Flight 12520 | . . . . . . 2378 539 337 832 268 1685 549 352 77 158 1663 1353 355 173 567 1141 93 . . . . . . Fastest Speed 21 | 50 160 240 240 240 160 23 23 23 23 23 21 21 24 24 24 21 22 26 26 26 29 29 50 42 42 42 109 50 Average Speed 65 | 154 196 240 240 240 184 25 23 23 23 23 23 24 24 24 24 22 23 30 28 26 30 50 93 55 97 99 115 128 Slowest Speed 330 | 160 240 240 240 240 246 246 23 23 23 23 25 25 24 24 24 24 101 99 99 29 120 61 111 108 134 160 134 330 Overloaded Moves . | . . . . . . . . . . . . . . . . . . . . . . . . . . . . . Propulsion Burnouts . | . . . . . . . . . . . . . . . . . . . . . . . . . . . . . Robots Hopped 27 | . . . . . . 10 1 . . . 4 2 . . . 4 2 . . 2 2 . . . . . . . Potential Cave-ins 32 | . . . . . . . . . . . . 2 . . . 3 24 . . . . . 3 . . . . . Cave-ins Triggered . | . . . . . . . . . . . . . . . . . . . . . . . . . . . . . Exploration Rate (%) 57 | 5 87 62 61 68 68 68 54 62 84 51 36 63 61 68 40 42 70 73 87 54 26 65 51 88 68 36 34 33 Regions Visited 28 Branch Regions 19 Pre-discovered Areas 6 | . . . 1 . 1 1 . . . . . . . 1 . 1 . . . . . . . 1 . . . . Known Exits Taken 10 | . . . . . 1 1 . . . 1 1 . . . . 1 . . . 1 1 . . . 1 1 1 . Unknown Exits Taken 18 | 1 1 1 1 1 . . 1 1 1 . . 1 1 1 1 . 1 1 1 . . 1 1 1 . . . . Scrap Searched 19 | . . . . 1 . . 5 1 3 1 . 2 3 . . . . . . . . 1 . . 2 . . . Spaces Dug 293 | . 2 . . 7 6 47 13 7 . 8 29 6 3 . 3 47 20 . . 10 12 2 19 . 12 17 6 17 Terrain Destroyed 759 | . 17 . . 13 74 67 13 7 . 8 29 6 3 . 3 48 135 47 11 10 12 2 19 125 36 17 6 51 Melee 196 | . . . . . 6 44 10 5 . 6 22 2 2 . 2 39 4 . . 9 12 . 14 . . 1 6 12 Projectile 116 | . 3 . . . . 3 3 2 . 2 7 4 1 . 1 9 16 . . 1 . 2 5 . 36 16 . 5 AOE 447 | . 14 . . 13 68 20 . . . . . . . . . . 115 47 11 . . . . 125 . . . 34 Terrain Rammed . | . . . . . . . . . . . . . . . . . . . . . . . . . . . . . Walls Destroyed . | . . . . . . . . . . . . . . . . . . . . . . . . . . . . . Machines Disabled . | . . . . . . . . . . . . . . . . . . . . . . . . . . . . . Actions | -11 -10 -10 -10 -9 -8 -7 -7 -7 -7 -6 -6 -6 -6 -6 -5 -5 -5 -5 -5 -5 -4 -4 -4 -4 -3 -3 -2 -1 --------- Run | Yrd Mat Min Exi Min Mat Fac Low Low Zio Pro Fac Low Low Dat Pro Fac Ext Cet Arc Hub Fac Upp Upp War Pro Res Res Acc Total 26949 | 104 648 294 249 257 1221 2970 635 391 954 319 1962 588 365 76 162 2461 1996 595 1554 852 1376 451 384 1078 476 1219 1282 2030 Wait 4771 | 5 34 21 3 9 274 370 75 42 111 39 195 29 1 . . 690 372 174 1356 260 177 14 . 69 15 120 66 250 Move 20324 | 79 542 273 240 234 812 2372 536 336 831 267 1676 544 351 76 157 1654 1348 354 172 562 1156 408 353 956 408 986 1122 1519 Hop 27 | . . . . . . 10 1 . . . 4 2 . . . 4 2 . . 2 2 . . . . . . . Pick Up 131 | 4 14 . 3 5 23 8 1 1 1 . 2 . . . . 1 2 10 . 1 3 2 . 3 . 25 13 9 Fast Attach 185 | 6 2 . . . 6 13 . . 4 . 9 . . . . 11 10 11 3 . 11 5 2 20 4 26 9 33 Attach 71 | 1 . . . . 5 13 1 2 . 2 4 . . . . 2 1 2 . 1 1 2 . . . . 3 31 Detach 29 | . 2 . . . . 2 1 2 1 2 3 . 1 . . 1 1 . . 1 2 1 . . . 1 . 8 Swap 171 | . 12 . . 2 27 21 5 . . . 4 5 3 . 2 15 14 3 4 4 . 3 . 2 3 3 17 22 Drop 217 | . 3 . 3 5 25 28 1 1 5 . 8 . 1 . . 7 7 14 3 3 4 4 . 13 2 31 20 29 Fire 285 | 9 39 . . 2 43 19 4 2 . 2 7 5 2 . 1 14 36 4 3 2 . 2 5 15 36 19 4 10 Melee 484 | . . . . . 6 71 10 5 1 7 32 3 6 . 2 62 23 23 13 16 20 10 23 . 8 8 28 107 Ram 1 | . . . . . . . . . . . . . . . . . . . . . . . 1 . . . . . Kick . | . . . . . . . . . . . . . . . . . . . . . . . . . . . . . Crush . | . . . . . . . . . . . . . . . . . . . . . . . . . . . . . Escape Stasis 169 | . . . . . . 43 . . . . 18 . . . . . 108 . . . . . . . . . . . Rewire 72 | . . . . . . . . . . . . . . . . . 72 . . . . . . . . . . . Trap . | . . . . . . . . . . . . . . . . . . . . . . . . . . . . . Miscellaneous 12 | . . . . . . . . . . . . . . . . . . . . . . . . . . . . 12 Route ------- -11/Scrapyard -10/Materials (discovered 5 exits: *Mat x3 / [*Min] / Sub) -10/Mines (discovered 2 exits: *Mat / *Exi) -10/Exiles -9/Mines -8/Materials (discovered 4 exits: *Fac x3 / *Sto) -7/Factory (discovered 5 exits: *Fac x3 / *Low x2) -7/Lower Caves -7/Lower Caves -7/Zion -6/Proximity Caves -6/Factory (discovered 2 exits: *Fac / *Low) -6/Lower Caves -6/Lower Caves -6/Data Miner -5/Proximity Caves -5/Factory (discovered 8 exits: *Fac x4 / Upp x2 / *Ext x2) -5/Extension (discovered 3 exits: *Fac x2 / *Cet) -5/Cetus (discovered 2 exits: *Fac / *Arc) -5/Archives (discovered 3 exits: *Fac / *Hub x2) -5/Hub_04(d) (discovered 4 exits: *Fac x4) -4/Factory (discovered 6 exits: *Res x3 / *Upp x2 / Arm) -4/Upper Caves -4/Upper Caves -4/Warlord -3/Proximity Caves -3/Research (discovered 4 exits: *Res x3 / [*Qua]) -2/Research (discovered 4 exits: *Acc x2 / *Tes x2) -1/Access (discovered 1 exit: Sur) History --------- Turn | Location | Event 77 | -11/Scrapyard | Discovered new exit (range 15) 169 | -11/Scrapyard | Entered Materials 254 | -10/Materials | Discovered new exit (range 5) 312 | -10/Materials | Build established: Mutant 442 | -10/Materials | Discovered new exit (range 12) 785 | -10/Materials | Identified exit to Materials 785 | -10/Materials | Identified exit to Subcaves 975 | -10/Materials | Learned location of 3 exits from Materials 1020 | -10/Materials | Learned Storage trap positions 1076 | -10/Materials | Learned Storage terminal intel 1144 | -10/Materials | Learned 4 Recycling zone layouts 1425 | -10/Materials | Entered Mines 1440 | -10/Mines | Met a Derelict bent on vengeance 1632 | -10/Mines | Discovered exit to Materials (range 3) 2030 | -10/Mines | Deemed a non-threat by the Exiles lab entrance 2030 | -10/Mines | Discovered new exit (range 5) 2102 | -10/Mines | Entered Exiles 2162 | -10/Exiles | Met 8R-AWN 2203 | -10/Exiles | Met EX-HEX 2270 | -10/Exiles | Met EX-BIN 2297 | -10/Exiles | Aligned with FarCom system 2299 | -10/Exiles | Given EX-Vault access code 2354 | -10/Exiles | Opened EX-Vault 2369 | -10/Exiles | Found Gui. Plasma Cannon 2416 | -10/Exiles | Warned to stay clear of 0b10 Research branches 2483 | -10/Exiles | Met EX-DEC 2498 | -10/Exiles | Learned location of Zion (-7) 2667 | -10/Exiles | Discovered new exit (range 10) 2686 | -10/Exiles | Left Exiles lab with Gui. Plasma Cannon 2686 | -10/Exiles | Entered Mines 2749 | -9/Mines | Met a Derelict shopkeep closing up shop 2852 | -9/Mines | A weapon hastily lodged in a ceiling crevice suddenly fell to the ground 3109 | -9/Mines | Learned Materials security intel 3114 | -9/Mines | Received a Rocket Launcher from a helpful Derelict 3250 | -9/Mines | Discovered new exit (range 9) 3272 | -9/Mines | Entered Materials 3272 | -8/Materials | Evolved 4 slots: Propulsion x1, Utility x2, Weapon x1 3272 | -8/Materials | Discovered new exit (range 9) 3273 | -8/Materials | Identified exit to Factory 3814 | -8/Materials | Build established: Skirmisher 3821 | -8/Materials | Identified exit to Storage 4604 | -8/Materials | Build established: Tank 4798 | -8/Materials | Learned location of 1 exit from Recycling 4843 | -8/Materials | Learned Factory scanalyzer intel 4877 | -8/Materials | Learned 2 Lower Caves zone layouts 4901 | -8/Materials | Learned location of 2 exits from Factory 4915 | -8/Materials | Learned 4 Recycling zone layouts 4940 | -8/Materials | Learned Factory stockpile data 4977 | -8/Materials | Learned Storage stockpile data 5234 | -8/Materials | Build established: Mutant 5267 | -8/Materials | Entered Factory 5267 | -7/Factory | Evolved 2 slots: Propulsion x2 5268 | -7/Factory | Identified exit to Lower Caves 5269 | -7/Factory | Identified exit to Factory 5271 | -7/Factory | Loaded intel: 4 scanalyzer locations 5602 | -7/Factory | Build established: Scout 6538 | -7/Factory | Discovered exit to Factory (range 13) 6562 | -7/Factory | Build established: Infiltrator-Ninja 6620 | -7/Factory | Entered Lower Caves 6689 | -7/Lower Caves | Found Prototype Device 6766 | -7/Lower Caves | Spotted B-75 Beast 6866 | -7/Lower Caves | Discovered new exit (range 7) 6868 | -7/Lower Caves | Entered another Lower Caves area 6924 | -7/Lower Caves | Build established: Sprinter 6987 | -7/Lower Caves | Encountered a Warlord checkpoint 7006 | -7/Lower Caves | Ambushed by research squad 7009 | -7/Lower Caves | Discovered new exit (range 15) 7012 | -7/Lower Caves | Entered Zion 7021 | -7/Zion | System corruption cleaned by Quarantine Array 7027 | -7/Zion | Discovered new exit (range 14) 7033 | -7/Zion | Acquired unknown access codes intercepted by a Zionite 7037 | -7/Zion | Found CR-A16's Pointy Stick 7058 | -7/Zion | Gained Derelict followers 7113 | -7/Zion | Given A8's code to call for help 7138 | -7/Zion | Rebuked by Imprinter 7221 | -7/Zion | Found Prototype Launcher 7221 | -7/Zion | Identified Gui. Missile Launcher 7328 | -7/Zion | Entered Proximity Caves 7328 | -6/Proximity Caves | Accompanied by 3 allies 7330 | -6/Proximity Caves | Learned Factory terminal intel 7441 | -6/Proximity Caves | Spotter reported a threat 7446 | -6/Proximity Caves | Spotter reported a threat 7456 | -6/Proximity Caves | Discovered exit to Factory (range 7) 7457 | -6/Proximity Caves | Entered Factory 7457 | -6/Factory | Evolved 2 slots: Propulsion x1, Utility x1 7458 | -6/Factory | Loaded intel: 26 terminal locations 7618 | -6/Factory | Discovered new exit (range 5) 7629 | -6/Factory | Identified exit to Lower Caves 8040 | -6/Factory | Discovered new exit (range 7) 8191 | -6/Factory | Entered Lower Caves 8221 | -6/Lower Caves | Spotted B-75 Beast 8317 | -6/Lower Caves | Learned Factory garrison access intel 8333 | -6/Lower Caves | Discovered new exit (range 14) 8383 | -6/Lower Caves | Entered another Lower Caves area 8385 | -6/Lower Caves | Attracted the attention of an 0b10 checkpoint 8428 | -6/Lower Caves | Encountered a Warlord checkpoint 8459 | -6/Lower Caves | Discovered new exit (range 15) 8493 | -6/Lower Caves | Entered Data Miner 8493 | -6/Data Miner | Discovered new exit (range 6) 8498 | -6/Data Miner | Met Data Miner 8502 | -6/Data Miner | Learned location of Section 7 (-2) 8502 | -6/Data Miner | Acquired the access code to Warlord's prototype stash 8506 | -6/Data Miner | Received God Mode back door access code from Data Miner 8512 | -6/Data Miner | Entered Proximity Caves 8513 | -5/Proximity Caves | Learned Factory security intel 8559 | -5/Proximity Caves | Discovered new exit (range 5) 8560 | -5/Proximity Caves | Entered Factory 8560 | -5/Factory | Evolved 2 slots: Power x1, Utility x1 8562 | -5/Factory | Loaded intel: 4 garrison access locations 8581 | -5/Factory | Identified exit to Upper Caves 8581 | -5/Factory | Identified exit to Extension 8701 | -5/Factory | Discovered new exit (range 14) 8827 | -5/Factory | Discovered new exit (range 4) 9176 | -5/Factory | Fabricated Cld. VTOL Module? 9210 | -5/Factory | Discovered new exit (range 13) 9359 | -5/Factory | Learned Quarantine terminal intel 9505 | -5/Factory | Learned Testing emergency access door positions 9515 | -5/Factory | Build established: Ninja 9614 | -5/Factory | Identified exit to Factory 9656 | -5/Factory | Learned Research stockpile data 9688 | -5/Factory | Learned Research repair station intel 9728 | -5/Factory | Learned location of 1 exit from Armory 9778 | -5/Factory | Learned 4 Proximity Caves zone layouts 9871 | -5/Factory | Entered Extension 9981 | -5/Extension | Rescued a captive Derelict 9984 | -5/Extension | Spotted B-75 Beast 9985 | -5/Extension | Rescued a captive Derelict 9985 | -5/Extension | Rescued a captive Derelict 10004 | -5/Extension | Rescued a captive Derelict 10010 | -5/Extension | Rescued a captive Derelict 10022 | -5/Extension | Rescued a captive Derelict 10227 | -5/Extension | Rescued a captive Derelict 10251 | -5/Extension | Rescued a captive Derelict 10397 | -5/Extension | Rescued a captive Derelict 10397 | -5/Extension | Rescued a captive Derelict 10436 | -5/Extension | Spotted B-75 Beast 10437 | -5/Extension | Rescued A7 10671 | -5/Extension | Disrupted transfer network 10869 | -5/Extension | Discovered exit to Factory (range 10) 10869 | -5/Extension | Discovered new exit (range 6) 10878 | -5/Extension | Disrupted transfer network 10920 | -5/Extension | Entered Cetus 10920 | -5/Cetus | Accompanied by 11 allies (A7) 10925 | -5/Cetus | Acquired a Cetus Manufacturing Module code from A7 10935 | -5/Cetus | Spotted Cetus Guard 10935 | -5/Cetus | Spotted Cetus Guard 10935 | -5/Cetus | Spotted Cetus Guard 10935 | -5/Cetus | Spotted Cetus Guard 10941 | -5/Cetus | Allies destroyed Cetus Guard 10954 | -5/Cetus | Allies destroyed Cetus Guard 10963 | -5/Cetus | Allies destroyed Cetus Guard 10970 | -5/Cetus | Allies destroyed Cetus Guard 10977 | -5/Cetus | Identified Heart of Steel 11000 | -5/Cetus | Lost 8 allies 11032 | -5/Cetus | Started Cetus Manufacturing Module 11057 | -5/Cetus | Manufactured an Enhanced Grunt 11082 | -5/Cetus | Manufactured an Enhanced Grunt 11107 | -5/Cetus | Manufactured an Enhanced Grunt 11132 | -5/Cetus | Manufactured an Enhanced Grunt 11157 | -5/Cetus | Manufactured an Enhanced Grunt 11167 | -5/Cetus | Discovered new exit (range 21) 11205 | -5/Cetus | Spotted Cetus Guard 11205 | -5/Cetus | Spotted Cetus Guard 11205 | -5/Cetus | Spotted Cetus Guard 11205 | -5/Cetus | Spotted Cetus Guard 11216 | -5/Cetus | Allies destroyed Cetus Guard 11234 | -5/Cetus | Discovered exit to Factory (range 21) 11238 | -5/Cetus | Met Revision 17 11294 | -5/Cetus | Murdered A7 11298 | -5/Cetus | Extracted ID and sensor layout for unrecognized location from A7's data core 11315 | -5/Cetus | Entered Archives 11315 | -5/Archives | Accompanied by 7 allies 11389 | -5/Archives | Build established: Commander-Scout 11392 | -5/Archives | Discovered new exit (range 22) 11394 | -5/Archives | Unable to access archive contents 11402 | -5/Archives | Discovered new exit (range 22) 11406 | -5/Archives | Unable to access archive contents 11407 | -5/Archives | Discovered exit to Factory (range 22) 12772 | -5/Archives | Entered Hub_04(d) 12772 | -5/Hub_04(d) | Accompanied by 5 allies 13136 | -5/Hub_04(d) | Network Hub disabled 13218 | -5/Hub_04(d) | Network Hub disabled 13218 | -5/Hub_04(d) | Spotted Lightning 13218 | -5/Hub_04(d) | Spotted Lightning 13227 | -5/Hub_04(d) | Spotted Lightning 13228 | -5/Hub_04(d) | Spotted Lightning 13233 | -5/Hub_04(d) | Network Hub disabled 13234 | -5/Hub_04(d) | Core integrity fell below 50% 13237 | -5/Hub_04(d) | Entered Factory 13237 | -4/Factory | Evolved 2 slots: Utility x2 13238 | -4/Factory | Identified exit to Research 13238 | -4/Factory | Identified exit to Upper Caves 13265 | -4/Factory | Lost 5 parts (1p2n2u) 13432 | -4/Factory | Identified exit to Armory 13503 | -4/Factory | Build established: Scout 13763 | -4/Factory | Found Prototype Processor 13763 | -4/Factory | Identified Exp. Terrain Scan Processor 13844 | -4/Factory | Entered Upper Caves 13861 | -4/Upper Caves | Acquired the password to a Derelict Tinkerer's latest research 13865 | -4/Upper Caves | Found Prototype Special Weapon 13865 | -4/Upper Caves | Identified Molecular Deconstructor 13954 | -4/Upper Caves | Caught by Unaware searching for contraband prototypes 14089 | -4/Upper Caves | Entered a destroyed Warlord outpost 14096 | -4/Upper Caves | Discovered new exit (range 20) 14101 | -4/Upper Caves | Learned Research trap positions 14115 | -4/Upper Caves | Entered another Upper Caves area 14174 | -4/Upper Caves | Learned Research non-interactive machine intel 14228 | -4/Upper Caves | Build established: Scavenger-Gladiator 14515 | -4/Upper Caves | Discovered new exit (range 10) 14516 | -4/Upper Caves | Lost 4 parts (1p1n1u1w) 14521 | -4/Upper Caves | Entered Warlord 14555 | -4/Warlord | System corruption cleaned by Quarantine Array 14589 | -4/Warlord | Learned location of Armory (-4) 14589 | -4/Warlord | Learned Armory trap positions 14590 | -4/Warlord | Learned 4 Quarantine zone layouts 14590 | -4/Warlord | Learned 4 Command zone layouts 14590 | -4/Warlord | Learned 4 Testing zone layouts 14590 | -4/Warlord | Learned Factory terminal intel 14590 | -4/Warlord | Learned Factory repair station intel 14636 | -4/Warlord | Found Prototype Special Weapon 14636 | -4/Warlord | Identified RU-N14's Throwing Claymores v3 14692 | -4/Warlord | Met Warlord 14711 | -4/Warlord | Warlord's base attacked by MAIN.C 14777 | -4/Warlord | Opened Warlord's prototype stash 14785 | -4/Warlord | Build established: Scavenger-Mutant 14792 | -4/Warlord | Found Prototype Hackware 14792 | -4/Warlord | Identified System Mapper 14797 | -4/Warlord | Found Prototype Device 14797 | -4/Warlord | Identified System Purifier 14805 | -4/Warlord | Found Prototype Device 14805 | -4/Warlord | Identified Exp. Cloaking Device 14858 | -4/Warlord | Found Prototype Piercing Weapon 14858 | -4/Warlord | Identified Vortex Lance 15015 | -4/Warlord | Found RU-N14's Throwing Claymores v3 15053 | -4/Warlord | Found RU-N14's Throwing Claymores v3 15061 | -4/Warlord | Warlord forces counterattacked 15075 | -4/Warlord | Spotted Striker 15119 | -4/Warlord | Found RU-N14's Throwing Claymores v3 15136 | -4/Warlord | Spotted Striker 15138 | -4/Warlord | Destroyed Striker 15140 | -4/Warlord | Spotted Striker 15141 | -4/Warlord | Lost 4 allies 15148 | -4/Warlord | Spotted Striker 15151 | -4/Warlord | Destroyed Striker 15172 | -4/Warlord | Destroyed 10 combat bots 15178 | -4/Warlord | Discovered new exit (range 14) 15189 | -4/Warlord | Entered Proximity Caves 15468 | -3/Proximity Caves | Build established: Scavenger-Gladiator 15555 | -3/Proximity Caves | Spotted B-86 Titan 15570 | -3/Proximity Caves | Revealed the true nature of CR-A16's Pointy Stick 15573 | -3/Proximity Caves | Destroyed B-86 Titan 15601 | -3/Proximity Caves | Lost 3 parts (1p2n) 15638 | -3/Proximity Caves | Discovered exit to Research (range 13) 15708 | -3/Proximity Caves | Entered Research 15708 | -3/Research | Evolved 2 slots: Propulsion x1, Utility x1 15709 | -3/Research | Loaded intel: 60 trap records 15711 | -3/Research | Loaded intel: 81 non-interactive machine locations 15712 | -3/Research | Loaded intel: 4 repair station locations 15908 | -3/Research | Revision forces began assault on 0b10 15951 | -3/Research | Discovered new exit (range 15) 15984 | -3/Research | Met up with Revision 17++ 16253 | -3/Research | Lost 3 allies 16258 | -3/Research | Discovered new exit (range 10) 16342 | -3/Research | Identified exit to Research 16408 | -3/Research | Research terminal network offline 16551 | -3/Research | Fabricated Quantum Capacitor (x2) 16672 | -3/Research | Found Prototype Processor 16672 | -3/Research | Identified Exp. Core Analyzer 16952 | -3/Research | Entered another Research area 16952 | -2/Research | Warlord forces began assault on 0b10 16952 | -2/Research | Evolved 2 slots: Power x1, Utility x1 17062 | -2/Research | Research machine network offline 17169 | -2/Research | Discovered new exit (range 13) 17236 | -2/Research | Identified exit to Testing 17298 | -2/Research | Borebot progress halted 17423 | -2/Research | Spotted Striker 17428 | -2/Research | Borebot progress halted 17436 | -2/Research | Destroyed Striker 17451 | -2/Research | Borebot progress halted 17525 | -2/Research | Spotted Striker 17530 | -2/Research | Spotted Striker 17546 | -2/Research | Met up with Warlord 17645 | -2/Research | Spotted Executioner 17648 | -2/Research | Spotted AE-VM4(D) 17654 | -2/Research | Spotted W2-DQJ(L) 17695 | -2/Research | Spotted Striker 17714 | -2/Research | Borebot progress halted 17952 | -2/Research | Warlord invited to help at Command 17952 | -2/Research | Given Cave Seal Controls access code 18036 | -2/Research | Spotted Striker 18037 | -2/Research | P-80 Master assimilated allied A3-U6X(s) 18067 | -2/Research | Lost 6 allies 18173 | -2/Research | Spotted Striker 18183 | -2/Research | Discovered new exit (range 17) 18367 | -2/Research | Discovered exit to Testing (range 21) 18403 | -2/Research | Spotted Executioner 18431 | -2/Research | Discovered new exit (range 18) 18464 | -2/Research | Identified exit to Access 18466 | -2/Research | Entered Access 18466 | -1/Access | Evolved 2 slots: Utility x2 18506 | -1/Access | Identified exit to Surface 18998 | -1/Access | Incoming investigation squad redirected 19028 | -1/Access | Fabricated D-63 Destroyer (x1) 19531 | -1/Access | Lost 7 parts (2p4u1w) 19589 | -1/Access | System corruption reached 10% 19812 | -1/Access | Lost 4 parts (1n2u1w) 19867 | -1/Access | Lost 4 parts (1p2n1u) 20291 | -1/Access | Lost 3 parts (1n2u) 20298 | -1/Access | Destroyed 7 combat bots 20698 | -1/Access | System corruption reached 30% 20736 | -1/Access | Lost 5 parts (1p2n1u1w) 20851 | -1/Access | Core integrity fell below 50% 20885 | -1/Access | Lost 10 parts (3p4n3u) 21095 | -1/Access | Lost 8 parts (2p2n4u) 21135 | -1/Access | Core integrity fell below 20% 21148 | -1/Access | Destroyed by H-88 Terminator with Heavy Machine Gun Last Messages --------------- 21131_ System corrupted: Component data lost. 21132_ Imp. Heavy Treads destroyed. 21132_ Com. Battery destroyed. 21132_ Slug penetrates P-80 Master. 21132_ Slug penetrates Y-72 Warden. 21132_ Slug penetrates P-80 Master. 21132_ Imp. Heavy Treads destroyed. 21133_ Penetrated by Slug. 21133_ R-10 Processor suffers critical hit (Destroy). 21133_ R-10 Processor destroyed. 21133_ Penetrated by Slug. 21133_ Acquired 72 matter. 21134_ Penetrated by Slug. 21136_ P-80 Master resets P-80 Master, system corruption cleaned. 21137_ Penetrated by Slug. 21137_ Imp. Melee Analysis Suite destroyed. 21137_ Adv. Targeting Computer destroyed. 21147_ Exp. Core Analyzer destroyed. 21148_ Penetrated by Slug. 21148_ Slug penetrates Wall. Map ----- +----------------------------------------------------+ | ?????????????????????????????????????????????????? | | ?????????????????????????????????????????????????? | | ?????????????????????????????????????????????????? | | ??????????????????????????????????????????######## | | ??????????????????????????????????????????# | | ??????????????????????????????????????????# | | ??????????????????????????????????????????# | | ??????????????????????????????????????????# | | ???????????????????????????????????????? # | | ???????????????????????????????????????? / | | ??????????????????????????????????????????# | | ??????????????????????????????????????????# | | ??????????????????????????????????????????# ! | | ?????????????????########+#####???????????######## | | ?????????????????# h #??????????????????? | | ?????????????????# #??????????????????? | | ?????????????????# h #??????????????????? | | ?????????????????# #??????????????????? | | ?????????????????# ! #?????BB???????????? | | ?????????????????# #?????BB???????????? | | ?????????????????# !! #??????????????????? | | ?????????????????+ !% #??????????????????? | | ?????????????????# ! #??????????????????? | | ?????????????????# #??????????????????? | | ?????????????????# #??????????????????? | | ?????????????????# @ #??????????????????? | | ???????????????#########+########????????????????? | | ???????????????# # #????????????????? | | ???????????????# / #????????????????? | | ???????????????# # #???????